fUSD/lending_fUSD_20260109
["ID","MTS","AMOUNT","RATE_DAILY","PERIOD"]
[401116790,1767945042116,-661.47,0.00017752,2]
[401116792,1767945042126,-671.63,0.00017752,2]
[401116794,1767945042136,-765.3,0.00017752,2]
[401116796,1767945042146,-150.0,0.00017754,2]
[401116798,1767945042155,-150.0,0.00017754,2]
[401116800,1767945042165,-247.21882098,0.00017773,2]
[401116802,1767945042176,-195.56140297,0.00017776,2]
[401116804,1767945042185,-247.7442357,0.0001778,2]
[401116806,1767945042195,-1100.0,0.00017789,2]
[401116808,1767945042205,-1411.322,0.00017791,2]
[401116810,1767945042214,-247.7442357,0.00017793,2]
[401116812,1767945042224,-1000.0,0.000178,2]
[401116814,1767945042235,-900.0,0.00017802,2]
[401116816,1767945042245,-247.7442357,0.00017807,2]
[401116819,1767945042258,-150.0,0.00017809,2]
[401116821,1767945042267,-150.0,0.00017809,2]
[401116823,1767945042277,-1698.43101968,0.00017809,2]
[401116825,1767945042287,-167.212,0.0001782,2]
[401116827,1767945042297,-247.7442357,0.0001782,2]
[401116829,1767945042308,-194.38272,0.0001782,2]
[401116831,1767945042318,-194.38272,0.0001782,2]
[401116833,1767945042328,-260.0,0.00017821,2]
[401116835,1767945042338,-194.38272,0.0001783,2]
[401116837,1767945042348,-247.7442357,0.00017833,2]
[401116839,1767945042358,-247.7442357,0.00017847,2]
[401116841,1767945042368,-2000.0,0.00017856,2]
[401116843,1767945042378,-247.7442357,0.0001786,2]
[401116845,1767945042388,-194.38272,0.0001786,2]
[401116847,1767945042399,-239.2738313,0.00017863,2]
[401116849,1767945042409,-150.0,0.00017863,2]
[401116851,1767945042418,-1000.0,0.00017871,2]
[401116853,1767945042427,-150.0,0.00017871,2]
[401116854,1767945042438,-540097.45914253,0.00017873,2]
[401116859,1767945042472,-151.0,0.00016154,2]
[401116861,1767945042482,-273.61229598,0.00017873,2]
[401116914,1767945043848,-661.58,0.00016082,2]
[401116915,1767945043859,-482.82,0.00016082,2]
[401116916,1767945043868,-1112.8,0.00016356,2]
[401116917,1767945043877,-171.4,0.00016356,2]
[401116918,1767945043887,-179.14,0.00016356,2]
[401116919,1767945043896,-42342.26,0.00017873,2]
[401116920,1767945043977,-35008.71908417,0.00017873,2]
[401116921,1767945043988,-773.17359864,0.00017873,2]
[401116922,1767945043999,-305.43973936,0.00017873,2]
[401116923,1767945045164,-1832.67330149,0.00017873,2]
[401116924,1767945045175,-384.996,0.00017873,2]
[401116925,1767945045213,-3131.51131072,0.00017873,2]
[401116926,1767945046482,-1000.0,0.000174,2]
[401116927,1767945046491,-1959.69139493,0.00017873,2]
[401116928,1767945046507,-3644.00857318,0.00017873,2]
[401116929,1767945046539,-474.18463783,0.00017873,2]
[401116937,1767945944132,1332.53098232,0.0001,2]
[401116938,1767945966979,3000.0,0.00011,3]
[401116942,1767946231854,-168.91,0.00012335,2]
[401116943,1767946231865,-278.08893371,0.00012335,2]
[401116944,1767946231928,-105.88445602,0.00012335,2]
[401116945,1767946231938,-251.0,0.00012335,2]
[401116946,1767946231947,-218.73739838,0.00013556,2]
[401116947,1767946232112,-83.79858902,0.00013556,2]
[401116948,1767946232124,-528.55524654,0.00013767,2]
[401116949,1767946232136,-404.53844161,0.00013767,2]
[401116950,1767946232195,-266.90631185,0.00013767,2]
[401116951,1767946232205,-125.93939991,0.00014763,2]
[401116952,1767946232216,-374.06060009,0.00014763,2]
[401116953,1767946232226,-88.05005704,0.00014763,2]
[401116954,1767946232239,-418.63063862,0.00014763,2]
[401116955,1767946232248,-121.37168837,0.00014799,2]
[401116981,1767946237998,-74.77369328,0.00014799,2]
[401116982,1767946238008,-500.0,0.00014799,2]
[401116983,1767946238018,-154.16639233,0.00014799,2]
[401116984,1767946238028,-335.66131348,0.00014799,2]
[401116985,1767946238038,-1240.34665533,0.000148,2]
[401116986,1767946238050,-9150.14732682,0.000148,2]
[401116987,1767946238062,-7970.31946859,0.000148,2]
[401117020,1767946238743,-1397.73763549,0.000148,2]
[401117021,1767946238797,-2085.00000064,0.000148,2]
[401117023,1767946238808,-18118.00000002,0.000148,2]
[401117025,1767946238819,-1185.26436967,0.000148,2]
[401117076,1767946240126,-57006.19780607,0.000148,2]
[401117077,1767946240135,-783.12,0.00014867,2]
[401117078,1767946240145,-4336.36,0.00014998,2]
[401117079,1767946240154,-242.84,0.0001503,2]
[401117080,1767946240166,-1680.0,0.00015144,2]
[401117081,1767946240175,-1000.0,0.00015245,2]
[401117082,1767946240185,-1000.0,0.0001531,2]
[401117083,1767946240195,-3240.0,0.00015467,2]
[401117084,1767946240204,-166.66,0.00015623,2]
[401117085,1767946240214,-1000000.0,0.00015776,2]
[401117086,1767946240224,-151.0,0.00015781,2]
[401117087,1767946240233,-151.0,0.00015781,2]
[401117088,1767946240242,-151.0,0.00015809,2]
[401117089,1767946240251,-151.0,0.00015809,2]
[401117090,1767946240260,-151.0,0.00015836,2]
[401117091,1767946240270,-151.0,0.00015836,2]
[401117092,1767946240278,-2500.0,0.00015855,2]
[401117093,1767946240287,-1500.0,0.00015858,2]
[401117094,1767946240297,-1852.42,0.00015876,2]
[401117095,1767946240305,-150.80096079,0.00015882,2]
[401117096,1767946240314,-2326.44699697,0.00015882,2]
[401117097,1767946240323,-150.0,0.00015936,2]
[401117098,1767946240332,-167.212,0.00015954,2]
[401117099,1767946240342,-1411.322,0.00015954,2]
[401117100,1767946240351,-150.0,0.00015954,2]
[401117101,1767946240360,-247.21882098,0.00015982,2]
[401117102,1767946240370,-3000.0,0.00016082,2]
[401117103,1767946240379,-900.0,0.00016082,2]
[401117104,1767946240389,-2326.44699688,0.00016106,2]
[401117105,1767946240398,-250.0,0.00016298,2]
[401117106,1767946240408,-2326.44699688,0.0001633,2]
[401117107,1767946240416,-1200.0,0.00016356,2]
[401117108,1767946240426,-466.84,0.00016356,2]
[401117109,1767946240435,-150.80096077,0.00016387,2]
[401117110,1767946240444,-166.66,0.00016482,2]
[401117111,1767946240453,-2506.21,0.00016521,2]
[401117112,1767946240463,-239.2738313,0.00016554,2]
[401117113,1767946240472,-2326.44699688,0.00016555,2]
[401117114,1767946240481,-169759.50126443,0.00016564,2]
[401117115,1767946240492,-17228.35395555,0.00016564,2]
[401117116,1767946240510,-357.96977514,0.00016564,2]
[401117117,1767946240521,-796.87788394,0.00016564,2]
[401117118,1767946240537,-8380.03751401,0.00016564,2]
[401117119,1767946240548,-2175.02066338,0.00016564,2]
[401117120,1767946240559,-1109.86639144,0.00016564,2]
[401117125,1767946240605,-17434.39884408,0.00016564,2]
[401117128,1767946240616,-266.6244499,0.00016564,2]
[401117130,1767946240627,-1073.57950257,0.00016564,2]
[401117144,1767946244427,-439.16784143,0.00016564,2]
[401117147,1767946244471,-363.346,0.00016564,2]
[401117148,1767946244520,-722.053332,0.00016564,2]
[401117149,1767946244531,-3874.85299278,0.00016564,2]
[401117153,1767946245793,-1279.06445309,0.00016564,2]
[401117154,1767946245992,-68025.97299719,0.00016564,2]
[401117156,1767946246004,-704.80873986,0.00016564,2]
[401117157,1767946246015,-1277.37690686,0.00016564,2]
[401117158,1767946246026,-1583.14736622,0.00016564,2]
[401117159,1767946246037,-1481.77121116,0.00016564,2]
[401117160,1767946246083,-3461.04614673,0.00016564,2]
[401117161,1767946246095,-423.74647872,0.00016564,2]
[401117162,1767946246108,-2183.75458493,0.00016564,2]
[401117163,1767946246125,-3402.049892,0.00016564,2]
[401117164,1767946246147,-832.61442649,0.00016564,2]
[401117165,1767946246159,-698.38,0.00016564,2]
[401117166,1767946246170,-533.9999989,0.00016564,2]
[401117167,1767946246181,-1736.7663872,0.00016564,2]
[401117168,1767946246191,-2351.0,0.00016658,2]
[401117169,1767946246202,-443.34840704,0.00016686,3]
[401117170,1767946246213,-555.65159296,0.00016686,3]
[401117171,1767946246223,-507.8853771,0.00016725,2]
[401117184,1767946377437,200.0,0.0003013,120]
[401117185,1767946573777,562.91,0.0003013,120]
[401117187,1767946775494,532.0,0.00030136,120]
[401117188,1767946839026,1023.542,0.00030137,120]
[401117192,1767947026773,539.43773926,0.00030136,120]
[401117210,1767947207120,-187.53432614,0.0001055,2]
[401117212,1767947308186,150.00248966,0.00030137,120]
[401117218,1767947432001,-1998.41797595,0.0001055,2]
[401117219,1767947432011,-161.09375916,0.00011505,2]
[401117220,1767947432021,-250.0,0.00011605,2]
[401117222,1767947432031,-195.0,0.00011605,2]
[401117224,1767947432040,-300.0,0.00011605,2]
[401117226,1767947432049,-250.0,0.00011605,2]
[401117228,1767947432059,-253.41395061,0.00012254,2]
[401117230,1767947432069,-2115.74,0.0001374,2]
[401117231,1767947432078,-197.62,0.00013752,2]
[401117232,1767947432088,-250.0,0.0001394,2]
[401117233,1767947432097,-242.84,0.00013957,2]
[401117234,1767947432107,-1200.0,0.00014006,2]
[401117235,1767947432117,-1388.23,0.00014007,2]
[401117236,1767947432127,-300.0,0.00014076,2]
[401117237,1767947432137,-13.60668695,0.00014078,2]
[401117238,1767947432150,-551.61331305,0.00014078,2]
[401117239,1767947432160,-3677.01,0.00014242,2]
[401117240,1767947432170,-200.0,0.00014358,2]
[401117241,1767947432179,-166.66,0.00014374,2]
[401117242,1767947432189,-167.212,0.00014406,2]
[401117243,1767947432198,-1663.488,0.00014406,2]
[401117244,1767947432208,-1200.0,0.00014466,2]
[401117245,1767947432218,-917.1,0.00014468,2]
[401117246,1767947432228,-247.21882098,0.00014562,2]
[401117247,1767947432237,-150.0,0.00014599,2]
[401117248,1767947432246,-55191.78747733,0.000146,2]
[401117249,1767947432262,-7958.52519925,0.000146,2]
[401117250,1767947432303,-359.64936348,0.000146,2]
[401117251,1767947432314,-539.07428944,0.000146,2]
[401117252,1767947432326,-433.03271818,0.000146,2]
[401117253,1767947432338,-714.96934667,0.000146,2]
[401117254,1767947432355,-940.0,0.000146,2]
[401117256,1767947432383,-9652.70891327,0.000146,2]
[401117274,1767947438170,-584.96291943,0.00014599,2]
[401117275,1767947438180,-500.0,0.00014599,2]
[401117276,1767947438190,-2021.08623284,0.000146,2]
[401117277,1767947438201,-1349.90711029,0.000146,2]
[401117278,1767947438212,-9050.06184128,0.000146,2]
[401117279,1767947438224,-350784.05422739,0.000146,2]
[401117280,1767947438235,-2064.74639188,0.000146,2]
[401117281,1767947438268,-568.06774272,0.000146,2]
[401117282,1767947438301,-130.10445016,0.000146,2]
[401117498,1767947440603,-1404.44569842,0.000146,2]
[401117500,1767947440614,-454.6273464,0.000146,2]
[401117503,1767947440625,-3464.4454591,0.000146,2]
[401117505,1767947440638,-5218.36329611,0.000146,2]
[401117507,1767947440651,-412.8989822,0.000146,2]
[401117509,1767947440663,-527.58909156,0.000146,2]
[401117512,1767947440674,-1902.07,0.000146,2]
[401117514,1767947440685,-2860.95238278,0.000146,2]
[401117516,1767947440701,-298.12608553,0.000146,2]
[401117519,1767947440715,-541698.70635372,0.000146,2]
[401117521,1767947440724,-2500.0,0.000146,2]
[401117523,1767947440733,-168.86770516,0.00014662,2]
[401117525,1767947440742,-155.48789289,0.00014662,2]
[401117527,1767947440751,-155.48789289,0.00014662,2]
[401117529,1767947440760,-166.66,0.00014677,2]
[401117531,1767947440768,-151.0,0.00014691,2]
[401117533,1767947440777,-151.0,0.00014691,2]
[401117535,1767947440786,-151.0,0.00014691,2]
[401117537,1767947440795,-151.0,0.00014691,2]
[401117538,1767947440805,-151.0,0.00014691,2]
[401117540,1767947440814,-151.0,0.00014691,2]
[401117543,1767947440824,-151.0,0.00014691,2]
[401117546,1767947440833,-151.0,0.00014691,2]
[401117548,1767947440842,-151.0,0.00014691,2]
[401117550,1767947440851,-151.0,0.00014691,2]
[401117552,1767947440860,-151.0,0.00014691,2]
[401117553,1767947440869,-151.0,0.00014691,2]
[401117555,1767947440879,-151.0,0.00014691,2]
[401117557,1767947440889,-151.0,0.00014691,2]
[401117560,1767947440898,-160.89416707,0.00014691,2]
[401117562,1767947440907,-500.0,0.00014763,2]
[401117564,1767947440916,-3677.01,0.00014955,2]
[401117566,1767947440926,-166.66,0.0001498,2]
[401117568,1767947440935,-166.66,0.00015282,2]
[401117569,1767947440944,-168.86770516,0.0001531,2]
[401117571,1767947440954,-155.48789289,0.0001531,2]
[401117573,1767947440963,-155.48789289,0.0001531,2]
[401117575,1767947440971,-1000.0,0.0001531,2]
[401117577,1767947440981,-500.0,0.00015403,2]
[401117579,1767947440990,-1680.0,0.00015406,2]
[401117582,1767947441001,-420.0,0.0001542,2]
[401117584,1767947441011,-268.65,0.0001555,2]
[401117586,1767947441020,-166.66,0.00015585,2]
[401117587,1767947441030,-3677.01,0.00015667,2]
[401117589,1767947441039,-1000.0,0.00015676,2]
[401117591,1767947441048,-500.0,0.00015726,2]
[401117593,1767947441057,-150.0,0.00015777,2]
[401117596,1767947441071,-152.95446431,0.00015777,2]
[401117598,1767947441080,-150.0,0.00015777,2]
[401117600,1767947441089,-150.0,0.00015832,2]
[401117602,1767947441099,-150.0,0.00015832,2]
[401117603,1767947441108,-1000.0,0.00015858,2]
[401117606,1767947441117,-150.0,0.00015887,2]
[401117608,1767947441127,-150.0,0.00015887,2]
[401117609,1767947441137,-166.66,0.00015887,2]
[401117611,1767947441146,-150.0,0.00015941,2]
[401117613,1767947441155,-168.86770516,0.00015957,2]
[401117615,1767947441164,-155.48789289,0.00015957,2]
[401117618,1767947441173,-152.13305076,0.00015995,2]
[401117620,1767947441183,-150.0,0.00015995,2]
[401117622,1767947441193,-150.0,0.00015996,2]
[401117623,1767947441202,-200.0,0.00016029,2]
[401117626,1767947441212,-251.38953635,0.0001605,2]
[401117627,1767947441223,-250.0,0.00016051,2]
[401117629,1767947441232,-3000.0,0.00016082,2]
[401117631,1767947441244,-900.0,0.00016082,2]
[401117634,1767947441254,-661.58,0.00016082,2]
[401117635,1767947441263,-661.58,0.00016082,2]
[401117638,1767947441272,-482.82,0.00016082,2]
[401117640,1767947441283,-482.82,0.00016082,2]
[401117642,1767947441292,-661.58,0.00016082,2]
[401117644,1767947441302,-482.82,0.00016082,2]
[401117646,1767947441312,-661.58,0.00016082,2]
[401117648,1767947441321,-661.58,0.00016082,2]
[401117649,1767947441331,-482.82,0.00016082,2]
[401117651,1767947441340,-482.82,0.00016082,2]
[401117654,1767947441351,-661.58,0.00016082,2]
[401117656,1767947441360,-661.58,0.00016082,2]
[401117658,1767947441369,-908.78,0.00016082,2]
[401117659,1767947441379,-661.58,0.00016082,2]
[401117661,1767947441388,-661.58,0.00016082,2]
[401117664,1767947441397,-661.58,0.00016082,2]
[401117666,1767947441407,-1025.58,0.00016082,2]
[401117668,1767947441416,-239.2738313,0.0001619,2]
[401117669,1767947441425,-176716.4827262,0.000162,5]
[401117671,1767947441434,-1200.0,0.00016356,2]
[401117673,1767947441443,-179.14,0.00016356,2]
[401117675,1767947441452,-171.4,0.00016356,2]
[401117677,1767947441461,-556.4,0.00016356,2]
[401117679,1767947441471,-302.73,0.00016356,2]
[401117681,1767947441480,-179.14,0.00016356,2]
[401117683,1767947441489,-155.23,0.00016356,2]
[401117684,1767947441498,-323.63,0.00016356,2]
[401117686,1767947441507,-171.4,0.00016356,2]
[401117687,1767947441516,-466.84,0.00016356,2]
[401117688,1767947441525,-556.4,0.00016356,2]
[401117689,1767947441534,-179.14,0.00016356,2]
[401117690,1767947441544,-171.4,0.00016356,2]
[401117691,1767947441553,-466.84,0.00016356,2]
[401117692,1767947441563,-179.14,0.00016356,2]
[401117693,1767947441573,-171.4,0.00016356,2]
[401117694,1767947441582,-466.84,0.00016356,2]
[401117695,1767947441591,-556.4,0.00016356,2]
[401117696,1767947441601,-171.4,0.00016356,2]
[401117697,1767947441610,-466.84,0.00016356,2]
[401117698,1767947441620,-179.09,0.00016356,2]
[401117699,1767947441629,-556.4,0.00016356,2]
[401117700,1767947441641,-466.84,0.00016356,2]
[401117701,1767947441650,-556.4,0.00016356,2]
[401117702,1767947441659,-542.77,0.00016356,2]
[401117703,1767947441668,-466.84,0.00016356,2]
[401117704,1767947441678,-466.84,0.00016356,2]
[401117705,1767947441687,-933.68,0.00016356,2]
[401117706,1767947441696,-466.84,0.00016356,2]
[401117707,1767947441706,-466.84,0.00016356,2]
[401117708,1767947441716,-466.84,0.00016356,2]
[401117709,1767947441725,-466.84,0.00016356,2]
[401117710,1767947441734,-3677.01,0.00016379,2]
[401117711,1767947441744,-268.65,0.00016414,2]
[401117712,1767947441753,-599.84127451,0.00016438,2]
[401117713,1767947441762,-21623.92,0.00016438,2]
[401117714,1767947441772,-175.36234344,0.00016445,2]
[401117715,1767947441781,-1000.0,0.00016447,2]
[401117716,1767947441790,-150.0,0.00016461,2]
[401117717,1767947441800,-16881.7354294,0.00016545,2]
[401117718,1767947441809,-86387.2482054,0.00016545,2]
[401117719,1767947441819,-3236.1184493,0.00016545,2]
[401117720,1767947441828,-19760.8877938,0.00016545,2]
[401117721,1767947441837,-664045.525064,0.00016545,2]
[401117722,1767947441847,-317.695304,0.00016545,2]
[401117723,1767947441856,-317.695304,0.00016545,2]
[401117724,1767947441865,-317.695304,0.00016545,2]
[401117725,1767947441874,-317.695304,0.00016545,2]
[401117726,1767947441884,-238.68837173,0.00016545,2]
[401117727,1767947441893,-151.0,0.00016545,2]
[401117728,1767947441903,-151.0,0.00016545,2]
[401117729,1767947441912,-151.0,0.00016545,2]
[401117730,1767947441921,-151.0,0.00016545,2]
[401117731,1767947441930,-151.0,0.00016545,2]
[401117732,1767947441939,-151.0,0.00016545,2]
[401117733,1767947441948,-151.0,0.00016545,2]
[401117734,1767947441957,-187.540129,0.00016545,2]
[401117735,1767947441966,-151.0,0.00016545,2]
[401117736,1767947441976,-151.0,0.00016545,2]
[401117737,1767947441985,-151.0,0.00016545,2]
[401117738,1767947441995,-151.0,0.00016545,2]
[401117739,1767947442004,-151.0,0.00016545,2]
[401117740,1767947442014,-151.0,0.00016545,2]
[401117741,1767947442024,-151.0,0.00016545,2]
[401117742,1767947442034,-151.0,0.00016545,2]
[401117743,1767947442043,-151.0,0.00016545,2]
[401117744,1767947442052,-151.000016,0.00016545,2]
[401117745,1767947442062,-151.0,0.00016545,2]
[401117746,1767947442072,-151.0,0.00016545,2]
[401117747,1767947442081,-151.0,0.00016545,2]
[401117748,1767947442091,-906.513466,0.00016545,2]
[401117749,1767947442100,-906.513466,0.00016545,2]
[401117750,1767947442109,-906.513466,0.00016545,2]
[401117751,1767947442119,-906.513466,0.00016545,2]
[401117752,1767947442128,-151.0,0.00016545,2]
[401117753,1767947442138,-151.0,0.00016545,2]
[401117754,1767947442147,-843.943433,0.00016545,2]
[401117755,1767947442156,-843.943433,0.00016545,2]
[401117756,1767947442167,-843.943433,0.00016545,2]
[401117757,1767947442176,-151.0,0.00016545,2]
[401117758,1767947442186,-843.943433,0.00016545,2]
[401117759,1767947442196,-369.312873,0.00016545,2]
[401117760,1767947442206,-2056.110172,0.00016545,2]
[401117761,1767947442215,-369.312873,0.00016545,2]
[401117762,1767947442225,-369.312873,0.00016545,2]
[401117763,1767947442235,-2056.110172,0.00016545,2]
[401117764,1767947442244,-369.312873,0.00016545,2]
[401117765,1767947442253,-2056.110172,0.00016545,2]
[401117766,1767947442262,-2056.110172,0.00016545,2]
[401117767,1767947442271,-690.446226,0.00016545,2]
[401117768,1767947442281,-690.446226,0.00016545,2]
[401117769,1767947442290,-151.0,0.00016545,2]
[401117770,1767947442299,-690.446226,0.00016545,2]
[401117771,1767947442308,-690.446226,0.00016545,2]
[401117772,1767947442318,-151.0,0.00016545,2]
[401117773,1767947442328,-151.0,0.00016545,2]
[401117774,1767947442337,-1930.347932,0.00016545,2]
[401117775,1767947442346,-151.0,0.00016545,2]
[401117776,1767947442355,-332.214435,0.00016545,2]
[401117777,1767947442364,-1930.347932,0.00016545,2]
[401117778,1767947442373,-920.574913,0.00016545,2]
[401117779,1767947442382,-169.303544,0.00016545,2]
[401117780,1767947442391,-332.214435,0.00016545,2]
[401117781,1767947442400,-151.0,0.00016545,2]
[401117782,1767947442409,-151.0,0.00016545,2]
[401117783,1767947442419,-1930.347932,0.00016545,2]
[401117784,1767947442428,-297.140674,0.00016545,2]
[401117785,1767947442437,-920.574913,0.00016545,2]
[401117786,1767947442446,-151.0,0.00016545,2]
[401117787,1767947442455,-332.214435,0.00016545,2]
[401117788,1767947442464,-1930.347932,0.00016545,2]
[401117789,1767947442473,-297.140674,0.00016545,2]
[401117790,1767947442483,-920.574913,0.00016545,2]
[401117791,1767947442492,-151.0,0.00016545,2]
[401117792,1767947442500,-332.214435,0.00016545,2]
[401117793,1767947442509,-297.140674,0.00016545,2]
[401117794,1767947442519,-920.574913,0.00016545,2]
[401117795,1767947442528,-297.140674,0.00016545,2]
[401117796,1767947442537,-402.524167,0.00016545,2]
[401117797,1767947442546,-402.524167,0.00016545,2]
[401117798,1767947442555,-151.0,0.00016545,2]
[401117799,1767947442564,-402.524167,0.00016545,2]
[401117800,1767947442573,-151.0,0.00016545,2]
[401117801,1767947442582,-490.578158,0.00016545,2]
[401117802,1767947442591,-373.230619,0.00016545,2]
[401117803,1767947442601,-402.524167,0.00016545,2]
[401117804,1767947442610,-151.0,0.00016545,2]
[401117805,1767947442620,-490.578158,0.00016545,2]
[401117806,1767947442629,-373.230619,0.00016545,2]
[401117807,1767947442640,-396.415369,0.00016545,2]
[401117808,1767947442649,-1978.368862,0.00016545,2]
[401117809,1767947442657,-151.0,0.00016545,2]
[401117810,1767947442667,-490.578158,0.00016545,2]
[401117811,1767947442675,-373.230619,0.00016545,2]
[401117812,1767947442686,-396.415369,0.00016545,2]
[401117813,1767947442695,-1978.368862,0.00016545,2]
[401117814,1767947442704,-490.578158,0.00016545,2]
[401117815,1767947442714,-373.230619,0.00016545,2]
[401117816,1767947442723,-151.0,0.00016545,2]
[401117817,1767947442732,-1978.368862,0.00016545,2]
[401117818,1767947442741,-151.0,0.00016545,2]
[401117819,1767947442751,-1978.368862,0.00016545,2]
[401117820,1767947442760,-396.415369,0.00016545,2]
[401117821,1767947442770,-151.0,0.00016545,2]
[401117822,1767947442780,-396.415369,0.00016545,2]
[401117823,1767947442789,-151.0,0.00016545,2]
[401117824,1767947442799,-927.067124,0.00016545,2]
[401117825,1767947442809,-151.0,0.00016545,2]
[401117826,1767947442819,-927.067124,0.00016545,2]
[401117827,1767947442829,-927.067124,0.00016545,2]
[401117828,1767947442842,-927.067124,0.00016545,2]
[401117829,1767947442853,-151.0,0.00016545,2]
[401117830,1767947442863,-151.0,0.00016545,2]
[401117831,1767947442872,-151.0,0.00016545,2]
[401117832,1767947442881,-151.0,0.00016545,2]
[401117833,1767947442890,-151.0,0.00016545,2]
[401117834,1767947442900,-151.0,0.00016545,2]
[401117835,1767947442911,-151.0,0.00016545,2]
[401117837,1767947442921,-151.0,0.00016545,2]
[401117840,1767947442931,-151.0,0.00016545,2]
[401117842,1767947442940,-4106.764814,0.00016545,2]
[401117844,1767947442949,-4106.764814,0.00016545,2]
[401117845,1767947442959,-4106.764814,0.00016545,2]
[401117846,1767947442968,-4106.764814,0.00016545,2]
[401117847,1767947442978,-275.980319,0.00016545,2]
[401117848,1767947442988,-275.980319,0.00016545,2]
[401117849,1767947442998,-151.0,0.00016545,2]
[401117850,1767947443007,-275.980319,0.00016545,2]
[401117851,1767947443017,-185.80922,0.00016545,2]
[401117852,1767947443027,-422.992724,0.00016545,2]
[401117853,1767947443036,-329.986632,0.00016545,2]
[401117854,1767947443045,-275.980319,0.00016545,2]
[401117855,1767947443054,-329.986632,0.00016545,2]
[401117856,1767947443064,-422.992724,0.00016545,2]
[401117857,1767947443073,-329.986632,0.00016545,2]
[401117858,1767947443083,-422.992724,0.00016545,2]
[401117859,1767947443092,-329.986632,0.00016545,2]
[401117860,1767947443101,-422.992724,0.00016545,2]
[401117861,1767947443110,-1480.146365,0.00016545,2]
[401117862,1767947443120,-14338.7464742,0.00016546,2]
[401117863,1767947443129,-26523.84865019,0.0001656,2]
[401117864,1767947443138,-1237.7,0.00016595,2]
[401117865,1767947443148,-168.86770516,0.00016605,2]
[401117866,1767947443157,-155.48789289,0.00016605,2]
[401117867,1767947443166,-500.0,0.00016708,2]
[401117868,1767947443175,-158.57,0.00016712,2]
[401117869,1767947443185,-1237.7,0.00016723,2]
[401117870,1767947443194,-275.2346229,0.00016725,2]
[401117871,1767947443203,-2629.0,0.0001679,2]
[401117872,1767947443212,-1323.16,0.00016793,2]
[401117873,1767947443222,-1323.05,0.00016793,2]
[401117874,1767947443233,-661.58,0.00016793,2]
[401117875,1767947443242,-1288.19,0.00016793,2]
[401117876,1767947443252,-661.58,0.00016793,2]
[401117877,1767947443261,-796.91,0.00016793,2]
[401117878,1767947443270,-661.58,0.00016793,2]
[401117879,1767947443280,-1000.0,0.000168,2]
[401117880,1767947443289,-1237.7,0.0001685,2]
[401117881,1767947443298,-2629.0,0.00016877,2]
[401117882,1767947443307,-578.20924308,0.00016879,2]
[401117883,1767947443317,-303.65393209,0.00016879,2]
[401117884,1767947443326,-620.0,0.00016879,2]
[401117885,1767947443335,-322.6107,0.00016879,2]
[401117886,1767947443344,-151.0,0.00016879,2]
[401117887,1767947443354,-553.64373807,0.00016879,2]
[401117888,1767947443363,-587.0,0.00016893,2]
[401117889,1767947443372,-158.98723841,0.00016917,2]
[401117890,1767947443382,-2629.0,0.00016926,2]
[401117891,1767947443391,-2351.0,0.00016947,2]
[401117892,1767947443399,-2629.0,0.00016954,2]
[401117893,1767947443409,-1237.7,0.00016978,2]
[401117894,1767947443418,-2000.61975215,0.00016989,2]
[401117895,1767947443427,-2629.0,0.00016999,2]
[401117896,1767947443437,-250.0,0.00017,2]
[401117897,1767947443447,-160.0,0.00017,2]
[401117898,1767947443455,-2629.0,0.00017003,2]
[401117899,1767947443464,-1000.0,0.00017064,2]
[401117900,1767947443473,-3677.01,0.00017091,2]